bitfinex-derivatives/quotes_BTCF0:USTF0_20250405
["timestamp","ask_amount","ask_price","bid_price","bid_amount"]
[1743876267275,0.085128,82962.0,82961.0,0.00064007]
[1743876267459,0.146828,82962.0,82961.0,0.00064007]
[1743876268261,0.146828,82962.0,82961.0,0.016762]
[1743876269767,0.146828,82962.0,82961.0,0.02582324]
[1743876269965,0.146828,82962.0,82952.0,0.2873419]
[1743876269966,0.042206,82958.0,82952.0,0.2873419]
[1743876270173,0.4452172,82953.0,82952.0,0.00976328]
[1743876270478,0.4461372,82953.0,82952.0,0.00884328]
[1743876270663,0.0844253,82945.0,82944.0,0.21566891]
[1743876270864,0.4462253,82945.0,82944.0,0.21630891]
[1743876271064,0.5107253,82945.0,82944.0,0.21630891]
[1743876271667,0.5107253,82945.0,82944.0,0.23277133]
[1743876272265,0.5107253,82945.0,82944.0,0.23377133]
[1743876274178,0.5107253,82945.0,82944.0,0.02709131]
[1743876274473,0.5107253,82945.0,82944.0,0.02645131]
[1743876275571,0.5107253,82945.0,82944.0,0.05845131]
[1743876277578,0.4782253,82945.0,82944.0,0.05845131]
[1743876282873,0.4782253,82945.0,82944.0,0.02645131]
[1743876283082,0.5102253,82945.0,82944.0,0.02645131]
[1743876285582,0.1174253,82945.0,82944.0,0.02645131]
[1743876285782,0.1174253,82945.0,82944.0,0.02709131]
[1743876286183,0.1174253,82945.0,82944.0,0.02645131]
[1743876297781,0.1174253,82945.0,82944.0,0.04317724]
[1743876300391,0.1174253,82945.0,82944.0,0.10587724]
[1743876304187,0.0854253,82945.0,82944.0,0.10587724]
[1743876304385,0.0854253,82945.0,82944.0,0.10651724]
[1743876305281,0.1163253,82945.0,82944.0,0.10651724]
[1743876305485,0.4771253,82945.0,82944.0,0.10651724]
[1743876305681,0.4771253,82945.0,82944.0,0.10587724]
[1743876305892,0.4771253,82945.0,82944.0,0.07549564]
[1743876306098,0.4771253,82945.0,82936.0,0.00018085]
[1743876306099,0.0844334,82937.0,82936.0,0.00018085]
[1743876306399,0.0844334,82937.0,82936.0,0.03288085]
[1743876306588,0.1153334,82937.0,82936.0,0.03288085]
[1743876306789,0.1153334,82937.0,82936.0,0.05373178]
[1743876307293,0.1153334,82937.0,82936.0,0.05473178]
[1743876307494,0.1162534,82937.0,82936.0,0.08543178]
[1743876308398,0.1162534,82937.0,82936.0,0.05473178]
[1743876308595,0.1485534,82937.0,82936.0,0.05473178]
[1743876309497,0.1162534,82937.0,82936.0,0.05473178]
[1743876309697,0.1162534,82937.0,82936.0,0.06365046]
[1743876310084,0.1162534,82937.0,82936.0,0.06429046]
[1743876317601,0.0853534,82937.0,82936.0,0.06429046]
[1743876317900,0.0853534,82937.0,82936.0,0.14872496]
[1743876318109,0.0853534,82937.0,82936.0,0.18172496]
[1743876318317,0.08539341,82937.0,82936.0,0.18172496]
[1743876318809,0.08539341,82937.0,82936.0,0.19856929]
[1743876319913,0.08539341,82937.0,82936.0,0.11413479]
[1743876320410,0.11769341,82937.0,82936.0,0.11413479]
[1743876321417,0.11769341,82937.0,82936.0,0.40147669]
[1743876323707,0.00096001,82937.0,82936.0,0.48591119]
[1743876324014,0.00096001,82937.0,82936.0,0.80717712]
[1743876324410,0.19290925,82940.0,82939.0,0.0844314]
[1743876324712,0.10847865,82940.0,82939.0,0.40569733]
[1743876324909,0.10847865,82940.0,82939.0,0.49859733]
[1743876325112,0.10847865,82940.0,82939.0,0.51608166]
[1743876325310,0.10939865,82940.0,82939.0,0.51608166]
[1743876325824,0.10847865,82940.0,82939.0,0.51608166]
[1743876326117,0.10939865,82940.0,82939.0,0.51608166]
[1743876326526,0.04238985,82953.0,82939.0,0.58165026]
[1743876326725,0.04302985,82953.0,82952.0,0.0844182]
[1743876326923,0.00082085,82953.0,82952.0,0.1850582]
[1743876327117,0.00082085,82953.0,82952.0,0.2783582]
[1743876327314,0.08523805,82953.0,82952.0,0.2783582]
[1743876327510,0.08523805,82953.0,82952.0,0.29520253]
[1743876329322,0.08459805,82953.0,82952.0,0.29520253]
[1743876329523,0.00018085,82953.0,82952.0,0.29520253]
[1743876329726,0.0422042,82962.0,82960.0,0.084409]
[1743876329914,0.0422042,82962.0,82961.0,0.095]
[1743876329915,0.1272522,82962.0,82961.0,0.095]
[1743876330114,0.00064,82962.0,82961.0,0.1878844]
[1743876330319,0.0322,82963.0,82962.0,0.084408]
[1743876330514,0.116607,82963.0,82962.0,0.345048]
[1743876330718,0.116607,82963.0,82962.0,0.409448]
[1743876331030,0.116607,82963.0,82962.0,0.259448]
[1743876331227,0.117327,82963.0,82962.0,0.2762259]
[1743876331527,0.120327,82963.0,82962.0,0.2762259]
[1743876331921,0.123327,82963.0,82962.0,0.2762259]
[1743876332829,0.123247,82963.0,82962.0,0.259448]
[1743876333428,0.123247,82963.0,82962.0,0.149448]
[1743876333620,0.123247,82963.0,82962.0,0.249448]
[1743876334017,0.03884,82963.0,82962.0,0.249448]
[1743876334413,0.0382,82963.0,82962.0,0.249448]
[1743876334629,0.123287,82963.0,82962.0,0.249448]
[1743876334830,0.122607,82963.0,82962.0,0.249448]
[1743876335219,0.122607,82963.0,82962.0,0.26624408]
[1743876336019,0.122607,82963.0,82962.0,0.249448]
[1743876336222,0.122607,82963.0,82962.0,0.299448]
[1743876336927,0.122607,82963.0,82962.0,0.149448]
[1743876337127,0.123327,82963.0,82962.0,0.239448]
[1743876337629,0.123327,82963.0,82962.0,0.600248]
[1743876338218,0.123327,82963.0,82962.0,0.42584]
[1743876338625,0.123327,82963.0,82962.0,0.36144]
[1743876338926,0.185327,82963.0,82962.0,0.36144]
[1743876339533,0.123327,82963.0,82962.0,0.46144]
[1743876339828,0.123327,82963.0,82962.0,0.545848]
[1743876340531,0.123327,82963.0,82962.0,0.62413193]
[1743876340722,0.123247,82963.0,82962.0,0.62413193]
[1743876341435,0.03884,82963.0,82962.0,0.62413193]
[1743876342024,0.0421957,82979.0,82965.0,0.0422022]
[1743876342324,0.0323,82972.0,82971.0,0.0843988]
[1743876342526,0.0323,82972.0,82971.0,0.1243988]
[1743876342725,0.0323,82972.0,82971.0,0.1880988]
[1743876342933,0.0843959,82976.0,82971.0,0.16248313]
[1743876343134,0.1265928,82976.0,82971.0,0.16248313]
[1743876343325,0.0843976,82974.0,82973.0,0.1265932]
[1743876343525,0.0843976,82974.0,82973.0,0.1573932]
[1743876343526,0.0851976,82974.0,82973.0,0.1573932]
[1743876344820,0.0881976,82974.0,82973.0,0.1573932]
[1743876345017,0.0911976,82974.0,82973.0,0.1573932]
[1743876345224,0.0911976,82974.0,82973.0,0.1896932]
[1743876346229,0.0068,82974.0,82973.0,0.1896932]
[1743876346425,0.006,82974.0,82973.0,0.1896932]
[1743876347433,0.0903958,82974.0,82973.0,0.1896932]
[1743876347726,0.006,82974.0,82973.0,0.1896932]
[1743876348432,0.0903958,82974.0,82973.0,0.2062806]
[1743876348627,0.1217958,82974.0,82973.0,0.2062806]
[1743876348931,0.1217958,82974.0,82973.0,0.0496874]
[1743876349134,0.1217958,82974.0,82973.0,0.0796874]
[1743876349334,0.1217958,82974.0,82973.0,0.0173874]
[1743876349525,0.1530958,82974.0,82973.0,0.0008]
[1743876349834,0.1520958,82974.0,82973.0,0.0008]
[1743876350035,0.1498958,82974.0,82973.0,0.0317]
[1743876350234,0.1518958,82974.0,82973.0,0.0317]
[1743876352236,0.1205958,82974.0,82973.0,0.0317]
[1743876353227,0.1205958,82974.0,82973.0,0.1160968]
[1743876355027,0.1205958,82974.0,82973.0,0.13274687]
[1743876356741,0.1205958,82974.0,82973.0,0.04835007]
[1743876357836,0.1205958,82974.0,82973.0,0.13274687]
[1743876359038,0.1205958,82974.0,82973.0,0.16284687]
[1743876360043,0.1205958,82974.0,82973.0,0.27284687]
[1743876360435,0.1205958,82974.0,82973.0,0.16284687]
[1743876360627,0.1205958,82974.0,82973.0,0.24284687]
[1743876361137,0.1205958,82974.0,82973.0,0.15845007]
[1743876361531,0.1205958,82974.0,82973.0,0.09745007]
[1743876361729,0.5428958,82974.0,82973.0,0.01745007]
[1743876361932,0.5428958,82974.0,82973.0,0.01665007]
[1743876362133,0.0844019,82968.0,82967.0,0.0624]
[1743876362538,0.1156019,82968.0,82967.0,0.0624]
[1743876363042,0.1156019,82968.0,82967.0,0.07914843]
[1743876363644,0.1166019,82968.0,82967.0,0.07914843]
[1743876364938,0.1166019,82968.0,82967.0,0.11032843]
[1743876365136,0.1166019,82968.0,82967.0,0.08002843]
[1743876365335,0.1489019,82968.0,82967.0,0.08002843]
[1743876365536,0.5105019,82968.0,82967.0,0.01762843]
[1743876365840,0.5113019,82968.0,82967.0,0.01762843]
[1743876366140,0.4782019,82968.0,82967.0,0.06358]
[1743876366336,0.1174019,82968.0,82967.0,0.06358]
[1743876366538,0.1166019,82968.0,82967.0,0.06358]
[1743876367346,0.1174419,82968.0,82967.0,0.06358]
[1743876367542,0.0854019,82968.0,82967.0,0.16477696]
[1743876367849,0.0862019,82968.0,82967.0,0.16477696]
[1743876368146,0.0868419,82968.0,82967.0,0.16477696]
[1743876368346,0.0860419,82968.0,82967.0,0.16477696]
[1743876369039,0.00164,82968.0,82967.0,0.27477696]
[1743876369238,0.001,82968.0,82967.0,0.63557696]
[1743876369547,0.126596,82974.0,82973.0,0.0843947]
[1743876369735,0.126596,82974.0,82973.0,0.11269406]
[1743876370035,0.127396,82974.0,82973.0,0.11269406]
[1743876370844,0.129396,82974.0,82973.0,0.19709086]
[1743876371046,0.129396,82974.0,82973.0,0.11269406]
[1743876371241,0.131396,82974.0,82973.0,0.11269406]
[1743876372642,0.4029887,82992.0,82973.0,0.30709086]
[1743876372845,0.0004,82984.0,82983.0,0.0843866]
[1743876373035,0.0004,82984.0,82983.0,0.4802866]
[1743876373240,0.0004,82984.0,82983.0,0.49812066]
[1743876373448,0.0843844,82986.0,82985.0,0.0843846]
[1743876373649,0.0421907,82989.0,82988.0,0.0843815]
[1743876374348,0.3608,82992.0,82988.0,0.01783406]
[1743876374649,0.0843795,82991.0,82990.0,0.0843785]
[1743876374841,0.0843805,82989.0,82988.0,0.0421906]
[1743876375043,0.0893805,82989.0,82988.0,0.0431906]
[1743876375238,0.1215805,82989.0,82988.0,0.0783694]
[1743876375443,0.1543805,82989.0,82988.0,0.0783694]
[1743876375947,0.1543805,82989.0,82988.0,0.04384629]
[1743876376253,0.1593805,82989.0,82988.0,0.04384629]
[1743876376847,0.1543805,82989.0,82988.0,0.04284629]
[1743876377753,0.1593805,82989.0,82988.0,0.04284629]
[1743876379252,0.1593805,82989.0,82988.0,0.03508943]
[1743876379450,0.0843844,82986.0,82985.0,0.0421923]
[1743876379654,0.0850244,82986.0,82985.0,0.0432323]
[1743876379850,0.00064,82986.0,82985.0,0.17006828]
[1743876380050,0.00064,82986.0,82985.0,0.06006828]
[1743876380443,0.00064,82986.0,82985.0,0.17006828]
[1743876380747,0.0890236,82986.0,82985.0,0.06006828]
[1743876380953,0.00964,82986.0,82985.0,0.06006828]
[1743876381255,0.00964,82986.0,82985.0,0.25247835]
[1743876381555,0.00964,82986.0,82985.0,0.30395835]
[1743876382344,0.00964,82986.0,82985.0,0.3294354]
[1743876383454,0.00964,82986.0,82985.0,0.33829615]
[1743876383754,0.00964,82986.0,82985.0,0.28681615]
[1743876383953,0.00964,82986.0,82985.0,0.33833615]
[1743876384456,0.0940236,82986.0,82985.0,0.33833615]
[1743876385046,0.00964,82986.0,82985.0,0.33833615]
[1743876385655,0.00964,82986.0,82985.0,0.36903615]
[1743876386255,0.0940236,82986.0,82985.0,0.36903615]
[1743876389059,0.0940236,82986.0,82985.0,0.39933615]
[1743876390349,0.0940236,82986.0,82985.0,0.20933615]
[1743876390554,0.1269236,82986.0,82985.0,0.20933615]
[1743876390754,0.1601236,82986.0,82985.0,0.16714385]
[1743876393151,0.1601236,82986.0,82985.0,0.11562385]
[1743876393468,0.1905236,82986.0,82985.0,0.11562385]
[1743876393763,0.1905236,82986.0,82985.0,0.09878787]
[1743876393951,0.1905236,82986.0,82985.0,0.03778787]
[1743876396254,0.1905236,82986.0,82985.0,0.05477147]
[1743876398459,0.1905236,82986.0,82985.0,0.12007147]
[1743876398659,0.1601236,82986.0,82985.0,0.12007147]
[1743876399462,0.1272236,82986.0,82985.0,0.31445607]
[1743876399763,0.04284,82986.0,82985.0,0.20445607]
[1743876400362,0.1272236,82986.0,82985.0,0.20445607]
[1743876400869,0.1272236,82986.0,82985.0,0.41986462]
[1743876403563,0.04284,82986.0,82985.0,0.41986462]
[1743876404872,0.04284,82986.0,82985.0,0.20445607]
[1743876405459,0.04284,82986.0,82985.0,0.13915607]
[1743876405664,0.1272236,82986.0,82985.0,0.05477147]
[1743876405858,0.1272236,82986.0,82985.0,0.05373147]
[1743876406074,0.1583236,82986.0,82985.0,0.05373147]
[1743876406268,0.1583236,82986.0,82985.0,0.03674787]
[1743876406974,0.1583236,82986.0,82985.0,0.01127082]
[1743876407966,0.1583236,82986.0,82985.0,0.03654682]
[1743876408769,0.1583236,82986.0,82985.0,0.03762682]
[1743876409468,0.1583236,82986.0,82985.0,0.03654682]
[1743876410075,0.1583236,82986.0,82985.0,0.03762682]
[1743876410667,0.1583236,82986.0,82985.0,0.03654682]
[1743876412971,0.1272236,82986.0,82985.0,0.03654682]
[1743876413978,0.1574236,82986.0,82985.0,0.03654682]
[1743876414870,0.5182236,82986.0,82985.0,0.03654682]
[1743876418076,0.4880236,82986.0,82985.0,0.03654682]
[1743876423182,0.1272236,82986.0,82985.0,0.03654682]
[1743876423380,0.4880236,82986.0,82985.0,0.03654682]
[1743876423782,0.0843866,82983.0,82982.0,0.0311]
[1743876423983,0.08542661,82983.0,82982.0,0.03222]
[1743876424290,0.14862661,82983.0,82982.0,0.04143665]
[1743876424983,0.15162661,82983.0,82982.0,0.04143665]
[1743876425884,0.15562661,82983.0,82982.0,0.04143665]
[1743876426084,0.87722661,82983.0,82982.0,0.04143665]
[1743876426595,0.87722661,82983.0,82982.0,0.06633996]
[1743876426893,0.15562661,82983.0,82982.0,0.06633996]
[1743876427106,0.87722661,82983.0,82982.0,0.06633996]
[1743876428895,0.87722661,82983.0,82975.0,0.00018085]
[1743876428896,0.0843938,82976.0,82975.0,0.00018085]
[1743876429209,0.0843948,82975.0,82974.0,0.00572452]
[1743876429503,0.1461948,82975.0,82974.0,0.00104002]
[1743876429705,0.1461948,82975.0,82974.0,0.0229131]
[1743876429905,0.1461948,82975.0,82974.0,2e-08]
[1743876430097,0.1468748,82975.0,82974.0,2e-08]
[1743876431102,0.1498748,82975.0,82974.0,2e-08]
[1743876432507,0.0843978,82972.0,82971.0,0.0647]
[1743876432803,0.4462778,82972.0,82971.0,0.08291216]
[1743876433006,0.4777778,82972.0,82971.0,0.08291216]
[1743876433410,0.4777778,82972.0,82971.0,0.1375999]
[1743876433596,0.4777778,82972.0,82971.0,0.12046774]
[1743876434305,0.4787778,82972.0,82971.0,0.12046774]
[1743876434812,0.4787778,82972.0,82971.0,0.13760995]
[1743876435908,0.4787778,82972.0,82971.0,0.14664672]
[1743876439008,0.4787778,82972.0,82971.0,0.12950451]
[1743876440205,0.4787778,82972.0,82971.0,0.14641162]
[1743876443116,0.4787778,82972.0,82971.0,0.12950451]
[1743876444408,0.4787778,82972.0,82971.0,0.14637367]
[1743876444918,0.4787778,82972.0,82971.0,0.11437367]
[1743876447017,0.4787778,82972.0,82971.0,0.11329367]
[1743876451609,0.4787778,82972.0,82971.0,0.09642451]
[1743876452005,0.58713924,82972.0,82971.0,0.09642451]
[1743876456722,0.4787778,82972.0,82971.0,0.09642451]
[1743876459216,0.4787778,82972.0,82971.0,0.06332451]
[1743876459410,0.5099778,82972.0,82971.0,0.06332451]
[1743876460622,0.5099778,82972.0,82971.0,0.11217524]
[1743876464825,0.5099778,82972.0,82971.0,0.09542451]
[1743876465125,0.65437516,82972.0,82971.0,0.09542451]
[1743876465325,0.62317516,82972.0,82971.0,0.09542451]
[1743876465515,0.62317516,82972.0,82971.0,0.12642451]
[1743876465919,0.59167516,82972.0,82971.0,0.12642451]
[1743876466125,0.59167516,82972.0,82971.0,0.13842451]
[1743876467025,0.59167516,82972.0,82971.0,0.1552]
[1743876468319,0.62317516,82972.0,82971.0,0.1552]
[1743876470226,0.62317516,82972.0,82971.0,0.13842451]
[1743876471827,0.62317516,82972.0,82971.0,0.1551895]
[1743876473326,0.4787778,82972.0,82971.0,0.1551895]
[1743876479533,0.4787778,82972.0,82971.0,0.1562295]
[1743876484839,0.4472778,82972.0,82971.0,0.1562295]
[1743876486935,0.4472778,82972.0,82971.0,0.1662295]
[1743876487136,0.0864778,82972.0,82971.0,0.1662295]
[1743876489340,0.07243011,82972.0,82971.0,0.1807403]
[1743876489540,0.07243011,82972.0,82971.0,0.2651391]
[1743876489740,0.00208,82972.0,82971.0,0.2651391]
[1743876490642,0.0864778,82972.0,82971.0,0.26513162]
[1743876490943,0.0864778,82972.0,82971.0,0.2506283]
[1743876491130,0.0864778,82972.0,82971.0,0.53863293]
[1743876492534,0.00208,82972.0,82971.0,0.53863293]
[1743876492940,0.001,82972.0,82971.0,0.53863293]
[1743876493640,0.15062909,82977.0,82976.0,0.0843938]
[1743876493840,0.15062909,82977.0,82976.0,0.3054738]
[1743876494038,0.15062909,82977.0,82976.0,0.3691738]
[1743876494544,0.15062909,82977.0,82976.0,0.38593879]
[1743876494942,0.15462909,82977.0,82976.0,0.38593879]
[1743876495647,0.0461966,82977.0,82976.0,0.38593879]
[1743876495947,0.004,82977.0,82976.0,0.38593879]
[1743876496152,0.0883927,82977.0,82976.0,0.38593879]
[1743876496933,0.004,82977.0,82976.0,0.38593879]
[1743876498541,0.0883927,82977.0,82976.0,0.38593879]
[1743876503344,0.0883927,82977.0,82976.0,0.30154499]
[1743876503545,0.1204927,82977.0,82976.0,0.30154499]
[1743876504344,0.1204927,82977.0,82976.0,0.28478]
[1743876505759,0.1832927,82977.0,82976.0,0.28478]
[1743876510054,0.1832927,82977.0,82976.0,0.25218]
[1743876510654,0.1832927,82977.0,82976.0,0.00108]
[1743876511748,0.0843978,82972.0,82971.0,0.33173667]
[1743876512058,0.4451978,82972.0,82971.0,0.33173667]
[1743876512259,0.5087978,82972.0,82971.0,0.33173667]
[1743876513048,0.5097978,82972.0,82971.0,0.33173667]
[1743876514057,0.5097978,82972.0,82971.0,0.04372451]
[1743876514358,0.4461978,82972.0,82971.0,0.35812331]
[1743876514556,0.4785978,82972.0,82971.0,0.35812331]
[1743876515063,0.4793178,82972.0,82971.0,0.35884331]
[1743876515358,0.4793178,82972.0,82971.0,0.27444451]
[1743876522459,0.36252,82972.0,82971.0,0.27444451]
[1743876522671,0.4469178,82972.0,82971.0,0.27444451]
[1743876523167,0.5127178,82972.0,82971.0,0.27444451]
[1743876533169,0.4802178,82972.0,82971.0,0.27444451]
[1743876534477,0.5133178,82972.0,82971.0,0.27444451]
[1743876537671,0.1525178,82972.0,82971.0,0.27444451]
[1743876537982,0.5133178,82972.0,82971.0,0.27444451]
[1743876539589,0.5133178,82972.0,82971.0,0.30544451]
[1743876541576,0.1525178,82972.0,82971.0,0.30544451]
[1743876541783,0.62162929,82972.0,82971.0,0.30544451]
[1743876545579,0.5133178,82972.0,82971.0,0.30544451]
[1743876547879,0.1525178,82972.0,82971.0,0.30544451]
[1743876548079,0.5133178,82972.0,82971.0,0.30544451]
[1743876549386,0.4802178,82972.0,82971.0,0.30544451]
[1743876549686,0.4802178,82972.0,82971.0,0.33844451]
[1743876550279,0.4469178,82972.0,82971.0,0.33844451]
[1743876553983,0.4469178,82972.0,82971.0,0.42284331]
[1743876554486,0.14439736,82977.0,82976.0,0.0843938]
[1743876554782,0.14439736,82977.0,82976.0,0.6861938]
[1743876554783,0.22879006,82977.0,82976.0,0.6861938]
[1743876554982,0.22979006,82977.0,82976.0,0.79796835]
[1743876555180,0.14543737,82977.0,82976.0,0.84868835]
[1743876555383,0.14539736,82977.0,82976.0,0.84868835]
[1743876555583,0.14739736,82977.0,82976.0,0.84868835]
[1743876555889,0.23379006,82977.0,82976.0,0.7974138]
[1743876557089,0.23379006,82977.0,82976.0,0.81401528]
[1743876558577,0.0893927,82977.0,82976.0,0.81401528]
[1743876558889,0.0883927,82977.0,82976.0,0.81401528]
[1743876559282,0.004,82977.0,82976.0,0.81401528]
[1743876559879,0.0883927,82977.0,82976.0,0.7974138]
[1743876560684,0.004,82977.0,82976.0,0.7974138]
[1743876561483,0.004,82977.0,82976.0,0.81400187]
[1743876562087,0.004,82977.0,82976.0,0.7974138]
[1743876562995,0.0883927,82977.0,82976.0,0.7974138]
[1743876563398,0.0883927,82977.0,82976.0,0.81400428]
[1743876563579,0.004,82977.0,82976.0,0.81400428]
[1743876563991,0.0883927,82977.0,82976.0,0.81400428]
[1743876567989,0.0883927,82977.0,82976.0,0.36881048]
[1743876568194,0.1215127,82977.0,82976.0,0.36881048]
[1743876568391,0.1215127,82977.0,82976.0,0.28799048]
[1743876568596,0.1535127,82977.0,82976.0,0.28799048]
[1743876569198,0.1535127,82977.0,82976.0,0.2714]
[1743876569591,0.0893127,82977.0,82976.0,0.2714]
[1743876570204,0.0893127,82977.0,82976.0,0.304]
[1743876570603,0.0893127,82977.0,82976.0,0.32061685]
[1743876570803,0.1200127,82977.0,82976.0,0.32061685]
[1743876572204,0.1200127,82977.0,82976.0,0.25761685]
[1743876572505,0.1520127,82977.0,82976.0,0.25761685]
[1743876579425,0.1520127,82977.0,82976.0,0.47353873]
[1743876579617,0.1200127,82977.0,82976.0,0.47353873]
[1743876579819,0.1200127,82977.0,82976.0,0.55793253]
[1743876580021,0.1200127,82977.0,82976.0,0.47353873]
[1743876581723,0.1200127,82977.0,82976.0,0.53703873]
[1743876583022,0.1200127,82977.0,82976.0,0.32111685]
[1743876585021,0.1522127,82977.0,82976.0,0.32111685]
[1743876597831,0.1200127,82977.0,82976.0,0.32111685]
[1743876599423,0.1200127,82977.0,82976.0,0.28981685]
[1743876599424,0.1518127,82977.0,82976.0,0.28981685]
[1743876600940,0.1518127,82977.0,82976.0,0.2732]
[1743876601741,0.1518127,82977.0,82976.0,0.3058]
[1743876602941,0.2602104,82977.0,82976.0,0.3058]
[1743876606147,0.1977104,82977.0,82976.0,0.3058]
[1743876606329,0.1133177,82977.0,82976.0,0.7839938]
[1743876606529,0.1133177,82977.0,82976.0,0.7984194]
[1743876606739,0.1123977,82977.0,82976.0,0.84972791]
[1743876606935,0.13254336,82983.0,82982.0,0.0843876]
[1743876607138,0.13254336,82983.0,82982.0,0.3153476]
[1743876607331,0.21692996,82983.0,82982.0,0.3785476]
[1743876607539,0.21692996,82983.0,82982.0,0.31083088]
[1743876608242,0.22092996,82983.0,82982.0,0.31083088]
[1743876608834,0.22392996,82983.0,82982.0,0.31083088]
[1743876609035,0.25622996,82983.0,82982.0,0.31083088]
[1743876609844,0.28662996,82983.0,82982.0,0.27943088]
[1743876610147,0.28758997,82983.0,82982.0,0.27943088]
[1743876610444,0.15504661,82983.0,82982.0,0.27943088]
[1743876615139,0.15504661,82983.0,82982.0,0.49573381]
[1743876618140,0.12464661,82983.0,82982.0,0.49573381]
[1743876618745,0.12464661,82983.0,82982.0,0.27943088]
[1743876650376,0.48544661,82983.0,82982.0,0.27943088]
[1743876652872,0.51774661,82983.0,82982.0,0.27943088]
[1743876656477,0.15694661,82983.0,82982.0,0.27943088]
[1743876656680,0.51774661,82983.0,82982.0,0.27943088]
[1743876660879,0.48544661,82983.0,82982.0,0.27943088]
[1743876661281,0.45314661,82983.0,82982.0,0.27943088]
[1743876661779,0.45314661,82983.0,82982.0,0.36381848]
[1743876662170,0.0421908,82988.0,82987.0,0.0843815]
[1743876662371,0.0843837,82988.0,82987.0,0.6563815]
[1743876662571,0.0843837,82988.0,82987.0,0.58867088]
[1743876662778,0.0843837,82988.0,82987.0,0.68247088]
[1743876663283,0.0883837,82988.0,82987.0,0.68247088]
[1743876663482,0.0933837,82988.0,82987.0,0.68247088]
[1743876665673,0.0893837,82988.0,82987.0,0.68247088]
[1743876665872,0.0893837,82988.0,82987.0,0.68347088]
[1743876666082,0.0843837,82988.0,82987.0,0.68447088]
[1743876666483,0.0843837,82988.0,82987.0,0.68347088]
[1743876666683,0.0843837,82988.0,82987.0,0.68447088]
[1743876668577,0.0843837,82988.0,82987.0,0.76885348]
[1743876668778,0.0843837,82988.0,82987.0,0.68447088]
[1743876669486,0.04236977,82991.0,82987.0,0.81104468]
[1743876669687,0.0843837,82988.0,82987.0,0.72666208]
[1743876670778,0.0843837,82988.0,82987.0,0.77718208]
[1743876678094,0.0843837,82988.0,82987.0,0.73499088]
[1743876678286,0.0843837,82988.0,82987.0,0.37419088]
[1743876680290,0.0843837,82988.0,82987.0,0.45857348]
[1743876682102,0.0843837,82988.0,82987.0,0.32367088]
[1743876682307,0.5084837,82988.0,82987.0,0.26007088]
[1743876682511,0.5398837,82988.0,82987.0,0.26007088]
[1743876683205,0.5398837,82988.0,82987.0,0.01987088]
[1743876684294,0.0843938,82976.0,82971.0,0.04372451]
[1743876684493,0.0843938,82976.0,82975.0,0.03]
[1743876684692,0.1814938,82976.0,82975.0,0.03]
[1743876685209,0.1823338,82976.0,82975.0,0.03084]
[1743876685405,0.1823338,82976.0,82975.0,0.03184]
[1743876686504,0.1823338,82976.0,82975.0,0.03284]
[1743876687512,0.1823338,82976.0,82975.0,0.06324]
[1743876689919,0.1823338,82976.0,82975.0,0.03284]
[1743876696408,0.1823338,82976.0,82975.0,0.04970044]
[1743876699512,0.1823338,82976.0,82975.0,0.01970044]
[1743876699714,0.1823338,82976.0,82975.0,0.01886044]
[1743876703715,0.1823338,82976.0,82975.0,0.04996044]
[1743876704021,0.5431338,82976.0,82975.0,0.04996044]
[1743876704221,0.5431338,82976.0,82975.0,0.05088044]
[1743876704426,0.5431338,82976.0,82975.0,0.04996044]
[1743876705214,0.5105338,82976.0,82975.0,0.04996044]
[1743876705723,0.4774338,82976.0,82975.0,0.04996044]
[1743876707924,0.4774338,82976.0,82975.0,0.05088044]
[1743876708125,0.4774338,82976.0,82975.0,0.04996044]
[1743876709431,0.0852338,82976.0,82975.0,0.04996044]
[1743876709728,0.0852338,82976.0,82975.0,0.05084044]
[1743876709927,0.0852338,82976.0,82975.0,0.09234044]
[1743876711922,0.1163338,82976.0,82975.0,0.09234044]
[1743876716835,0.1163338,82976.0,82975.0,0.09146044]
[1743876718533,0.0852338,82976.0,82975.0,0.09146044]
[1743876720226,0.0852338,82976.0,82975.0,0.09230044]
[1743876729252,0.19371897,82976.0,82975.0,0.09230044]
[1743876730944,0.22561897,82976.0,82975.0,0.09230044]
[1743876733245,0.19371897,82976.0,82975.0,0.09230044]
[1743876736150,0.22631897,82976.0,82975.0,0.09230044]
[1743876738055,0.19371897,82976.0,82975.0,0.09230044]
[1743876739348,0.22701897,82976.0,82975.0,0.09230044]
[1743876739754,0.19371897,82976.0,82975.0,0.09230044]
[1743876740360,0.0852338,82976.0,82975.0,0.09230044]
[1743876740556,0.1164338,82976.0,82975.0,0.09230044]
[1743876742658,0.1484338,82976.0,82975.0,0.09146044]
[1743876742851,0.1484338,82976.0,82975.0,0.05996044]
[1743876743159,0.5092338,82976.0,82975.0,0.01886044]
[1743876744352,0.5092338,82976.0,82975.0,0.002]
[1743876746651,0.65356477,82976.0,82975.0,0.002]
[1743876747263,0.65356477,82976.0,82975.0,0.0863948]
[1743876747465,0.65356477,82976.0,82975.0,0.0873148]
[1743876747654,0.65356477,82976.0,82975.0,0.00292]
[1743876747959,0.65356477,82976.0,82975.0,0.01292]
[1743876749362,0.62156477,82976.0,82975.0,0.01292]
[1743876749865,0.4772338,82976.0,82975.0,0.01292]
[1743876750255,0.4772338,82976.0,82975.0,0.07472]
[1743876754666,0.4460338,82976.0,82975.0,0.09147436]
[1743876756663,0.0852338,82976.0,82975.0,0.09147436]
[1743876756858,0.4460338,82976.0,82975.0,0.09147436]
[1743876757659,0.0852338,82976.0,82975.0,0.09147436]
[1743876757965,0.4460338,82976.0,82975.0,0.09147436]
[1743876762861,0.0852338,82976.0,82975.0,0.09147436]
[1743876765675,0.0852338,82976.0,82975.0,0.17586916]
[1743876765676,0.00084,82976.0,82975.0,0.17586916]
[1743876766364,0.00084,82976.0,82975.0,0.20616916]
[1743876769364,0.00084,82976.0,82975.0,0.25742595]
[1743876769565,0.00084,82976.0,82975.0,0.20616916]
[1743876770167,0.0843918,82978.0,82977.0,0.0843927]
[1743876770367,0.0843918,82978.0,82977.0,0.1643927]
[1743876770572,0.0843918,82978.0,82977.0,0.2267927]
[1743876770769,0.0843907,82979.0,82978.0,0.0843912]
[1743876770976,0.0843907,82979.0,82978.0,0.1778912]
[1743876771576,0.0843907,82979.0,82978.0,0.19464556]
[1743876772169,0.0843907,82979.0,82978.0,0.19664556]
[1743876774368,0.1572838,82981.0,82979.0,0.0843906]
[1743876774576,0.0728944,82981.0,82979.0,0.2143906]
[1743876774777,0.0728944,82981.0,82980.0,0.1479897]
[1743876774975,0.10840575,82987.0,82980.0,0.15035436]
[1743876775173,0.10924575,82987.0,82982.0,0.0421934]
[1743876775367,0.084385,82985.0,82984.0,0.0843856]
[1743876775570,0.0843856,82984.0,82983.0,0.0324]
[1743876775881,0.1179456,82984.0,82983.0,0.07007436]
[1743876777867,0.1179456,82984.0,82983.0,0.07107436]
[1743876778268,0.1179456,82984.0,82983.0,0.07207436]
[1743876780169,0.1169856,82984.0,82983.0,0.07207436]
[1743876781378,0.1169856,82984.0,82983.0,0.07107436]